bitfinex/quotes_ETHUSD_20250426
["timestamp","ask_amount","ask_price","bid_price","bid_amount"]
[1745627330514,4.794,1791.5,1791.2,6.34982995]
[1745627330836,3.0,1791.4,1791.0,0.7527]
[1745627331015,8.58247504,1791.4,1790.9,5.58364374]
[1745627331192,3.0,1791.4,1790.9,11.16724432]
[1745627331601,3.0,1791.4,1791.0,5.58339037]
[1745627331979,3.0,1791.4,1791.1,5.58303426]
[1745627332186,3.0,1791.4,1791.1,11.16588428]
[1745627332922,3.0,1791.4,1791.1,5.5829408]
[1745627333220,3.0,1791.4,1791.0,5.58329747]
[1745627333516,4.46727516,1791.4,1791.0,5.58329747]
[1745627333817,4.46727516,1791.4,1791.1,5.58315007]
[1745627335320,4.46727516,1791.4,1791.2,5.58281717]
[1745627335526,0.7512,1791.6,1791.3,5.58253782]
[1745627335817,4.831,1791.5,1791.4,5.58210612]
[1745627336721,4.831,1791.7,1791.5,5.58180287]
[1745627337689,4.831,1791.7,1791.4,6.38959646]
[1745627337690,4.831,1791.7,1791.4,5.58202292]
[1745627339037,4.831,1791.7,1791.2,0.8075]
[1745627339337,0.7512,1791.6,1791.0,6.39073144]
[1745627339554,0.7512,1791.6,1791.1,5.58295161]
[1745627340340,0.7535,1791.4,1791.0,5.58335248]
[1745627340509,4.83,1791.3,1791.0,5.58335248]
[1745627340708,4.83,1791.3,1790.9,5.58365834]
[1745627340909,5.94657298,1791.3,1790.9,5.58371611]
[1745627341305,5.94657298,1791.3,1790.9,11.16733338]
[1745627341503,5.94657298,1791.3,1790.9,5.58351848]
[1745627341947,5.94657298,1791.3,1791.0,5.58347028]
[1745627342309,0.7535,1791.2,1791.0,5.58332001]
[1745627343414,0.7535,1791.2,1790.9,5.58365742]
[1745627344124,0.7535,1791.2,1791.0,5.58338984]
[1745627344848,0.7535,1791.2,1790.9,5.58360123]
[1745627345751,0.7535,1791.2,1791.0,5.5834465]
[1745627346923,0.7535,1791.2,1790.9,5.58362237]
[1745627347418,0.7535,1791.2,1790.9,5.58362206]
[1745627347619,0.7535,1791.2,1791.0,5.58346525]
[1745627348154,0.7535,1791.2,1791.0,5.58343227]
[1745627348323,0.7535,1791.2,1790.9,5.58362206]
[1745627349355,1.4235073,1791.2,1790.9,5.58362206]
[1745627349825,1.4235073,1791.2,1791.0,5.58339334]
[1745627350223,1.4235073,1791.2,1790.9,5.58357292]
[1745627351461,1.4235073,1791.2,1790.8,5.58390656]
[1745627351462,0.7771,1791.1,1790.7,5.58426292]
[1745627352665,0.7771,1791.1,1790.5,6.14195076]
[1745627352666,6.36055877,1791.1,1790.5,6.14195076]
[1745627352824,0.63605588,1791.0,1790.6,5.58469832]
[1745627353025,4.831,1790.9,1790.7,5.58439219]
[1745627353638,4.831,1790.9,1790.5,0.5571]
[1745627353639,0.7771,1790.8,1790.5,11.16968731]
[1745627353829,0.7771,1790.8,1790.5,5.58478735]
[1745627354231,0.7771,1790.8,1790.5,11.1695896]
[1745627354558,5.6081,1790.9,1790.6,5.58469465]
[1745627354748,6.23251559,1790.9,1790.6,5.58469465]
[1745627356262,5.45541559,1790.9,1790.7,5.58436095]
[1745627356772,0.7915,1791.0,1790.7,5.58436095]
[1745627356773,0.6700073,1791.2,1790.8,0.7809]
[1745627356946,4.789,1791.3,1791.1,5.58302592]
[1745627357353,4.789,1791.3,1791.0,5.58339805]
[1745627357354,4.789,1791.3,1791.0,5.58327838]
[1745627359769,4.789,1791.3,1791.0,11.16658032]
[1745627359969,5.2679,1791.3,1791.0,5.58327838]
[1745627360171,5.2679,1791.3,1791.0,11.16657612]
[1745627360874,5.2679,1791.3,1791.0,5.58327838]
[1745627363578,5.2679,1791.3,1791.0,11.16652696]
[1745627363768,5.2679,1791.3,1791.0,5.58324858]
[1745627363945,5.2679,1791.3,1790.9,5.5836018]
[1745627364281,5.2679,1791.3,1790.9,11.16716664]
[1745627364583,1.33429,1791.2,1790.8,0.7809]
[1745627364744,0.8075,1791.1,1790.6,5.58455753]
[1745627365080,0.8075,1790.9,1790.6,5.58455753]
[1745627365380,5.5965,1790.9,1790.5,5.58485822]
[1745627365562,7.01450154,1790.9,1790.5,5.58482595]
[1745627365769,7.01450154,1790.9,1790.6,5.58471098]
[1745627366583,7.01450154,1790.9,1790.5,5.58487989]
[1745627367056,7.01450154,1790.9,1790.3,0.5571]
[1745627367057,3.0,1790.8,1790.3,0.5571]
[1745627367257,0.3,1790.7,1790.4,5.58534249]
[1745627367457,0.3,1790.7,1790.3,6.14247834]
[1745627367659,0.7605,1790.6,1790.2,6.86598924]
[1745627367861,0.7605,1790.6,1790.3,5.58561638]
[1745627368275,0.7605,1790.6,1790.3,5.58544207]
[1745627368477,0.7605,1790.6,1790.3,11.17090717]
[1745627368784,0.7605,1790.6,1790.3,5.58544207]
[1745627369956,0.7605,1790.6,1790.4,5.5850595]
[1745627371793,0.7605,1790.6,1790.4,11.17029898]
[1745627371990,0.7645,1790.7,1790.5,5.58487065]
[1745627372157,1.14095,1790.7,1790.4,5.58512963]
[1745627372659,1.14095,1790.7,1790.4,11.17024637]
[1745627372860,1.14095,1790.7,1790.4,5.58511674]
[1745627373061,1.14095,1790.7,1790.4,11.17023336]
[1745627373262,1.14095,1790.7,1790.5,5.58501205]
[1745627373583,1.14095,1790.7,1790.4,5.58511662]
[1745627373883,1.14095,1790.7,1790.4,11.17022858]
[1745627375271,1.14095,1790.7,1790.4,11.17025195]
[1745627375689,1.14095,1790.7,1790.5,5.58499446]
[1745627376205,1.14095,1790.7,1790.4,5.58511196]
[1745627376376,1.14095,1790.7,1790.5,5.58481803]
[1745627377887,17.27679,1791.2,1790.4,0.63005785]
[1745627378207,22.86669,1791.2,1791.0,0.5571]
[1745627378409,22.86669,1791.2,1790.8,5.58393054]
[1745627378987,16.75,1791.2,1791.1,5.58316118]
[1745627379293,0.7999,1791.4,1791.1,5.58316118]
[1745627379495,4.79,1791.3,1791.2,5.582827]
[1745627379671,4.79,1791.5,1791.2,5.582827]
[1745627379877,7.79,1791.5,1791.2,5.582827]
[1745627380107,5.64899,1791.5,1791.2,5.582827]
[1745627381810,0.85899,1791.5,1791.1,5.58310683]
[1745627382010,4.789,1791.4,1791.1,5.58310683]
[1745627382405,0.7581,1791.3,1791.1,5.58312542]
[1745627382815,0.7581,1791.5,1791.1,5.58316118]
[1745627382980,5.5471,1791.5,1791.3,5.58223174]
[1745627383481,4.789,1791.5,1791.3,5.58223174]
[1745627384243,0.7581,1791.6,1791.4,5.58222619]
[1745627384516,4.769,1791.5,1791.4,5.58222619]
[1745627386618,4.769,1791.5,1791.3,5.58223174]
[1745627387519,4.769,1791.5,1791.4,5.58222619]
[1745627389017,4.769,1791.6,1791.5,5.58171768]
[1745627397247,4.769,1791.6,1791.4,5.58201451]
[1745627398551,4.769,1791.6,1791.4,11.16405109]
[1745627398851,4.769,1791.6,1791.4,11.16401337]
[1745627401452,10.8276108,1791.6,1791.2,0.8289]
[1745627401777,6.38699961,1791.5,1791.1,5.58314075]
[1745627401956,3.8049,1791.5,1791.1,11.16613592]
[1745627402638,3.8049,1791.5,1791.2,5.58279612]
[1745627403352,9.38682175,1791.5,1791.1,5.58303186]
[1745627403558,0.93868218,1791.4,1791.1,5.58315461]
[1745627403761,3.8049,1791.5,1791.1,5.58315461]
[1745627404136,3.8049,1791.5,1790.8,11.99993419]
[1745627404137,5.58270196,1791.3,1790.8,11.99993419]
[1745627404334,5.58270196,1791.3,1790.9,5.58377694]
[1745627404335,3.0,1791.3,1790.9,5.58377694]
[1745627404540,4.768,1791.2,1790.9,5.58377694]
[1745627404861,0.8049,1791.1,1790.7,5.58433008]
[1745627405084,0.8049,1791.1,1790.4,5.58513115]
[1745627405085,0.8049,1791.0,1790.4,5.58513115]
[1745627405222,3.0,1790.9,1790.4,5.58513067]
[1745627405425,4.768,1790.8,1790.4,5.58513067]
[1745627405629,4.768,1790.8,1790.4,11.17025654]
[1745627405830,3.8031,1790.7,1790.3,5.58552049]
[1745627406372,3.8031,1790.7,1790.2,7.9193]
[1745627406581,3.8031,1790.7,1790.2,7.0871]
[1745627406749,3.8031,1790.7,1790.3,5.58553825]
[1745627407446,3.8031,1790.7,1790.4,5.58533182]
[1745627407666,3.8031,1790.7,1790.5,5.58487848]
[1745627407976,4.769,1790.7,1790.6,5.58462882]
[1745627408159,4.769,1790.7,1790.5,5.58487848]
[1745627409475,4.769,1790.7,1790.5,5.58482757]
[1745627411471,4.769,1790.7,1790.6,5.5847202]
[1745627411645,4.769,1790.7,1790.5,5.58482757]
[1745627412168,4.769,1790.8,1790.5,5.58482757]
[1745627412675,0.8031,1790.9,1790.5,11.16970202]
[1745627412971,4.769,1790.8,1790.5,5.58482757]
[1745627413677,4.769,1790.8,1790.6,5.5846912]
[1745627413863,4.769,1790.8,1790.5,5.5848148]
[1745627414065,4.769,1790.8,1790.6,5.58459604]
[1745627414575,5.519,1791.3,1791.0,5.58320662]
[1745627414748,5.519,1791.3,1791.0,5.58332337]
[1745627416300,5.519,1791.3,1790.9,5.58361589]
[1745627416505,5.519,1791.3,1790.9,11.16717888]
[1745627416837,5.519,1791.3,1791.0,5.58333344]
[1745627417006,6.3709,1791.3,1791.0,5.58333344]
[1745627417977,6.3709,1791.3,1791.0,5.58325933]
[1745627418780,6.3709,1791.3,1791.1,5.58315742]
[1745627419081,6.3709,1791.3,1791.0,5.58325933]
[1745627420864,6.3709,1791.3,1790.8,0.63005785]
[1745627420865,5.519,1791.3,1791.1,5.58311261]
[1745627421067,0.8171,1791.5,1791.4,5.58222619]
[1745627421282,5.5531,1791.5,1791.3,5.58244723]
[1745627421468,5.5531,1791.5,1791.2,5.58283064]
[1745627421957,5.5531,1791.5,1791.2,5.58263489]
[1745627422488,5.5531,1791.5,1791.0,1.43555785]
[1745627422673,6.10841,1791.5,1791.0,5.58329426]
[1745627422990,0.9,1791.4,1791.0,5.58329426]
[1745627423356,0.9,1791.4,1790.9,6.38911227]
[1745627423555,5.58297877,1791.2,1790.7,6.8355]
[1745627423759,0.8171,1791.0,1790.6,5.58457553]
[1745627424428,8.58348487,1791.0,1790.4,5.58524051]
[1745627424723,8.58348487,1791.0,1790.3,6.03]
[1745627424724,6.40155292,1790.7,1790.3,6.03]
[1745627424886,4.736,1790.6,1790.3,6.03]
[1745627425084,4.736,1790.6,1790.3,5.58560868]
[1745627425521,4.736,1790.6,1790.3,5.58550679]
[1745627425695,4.736,1790.6,1790.4,5.5852181]
[1745627425900,4.736,1790.6,1790.4,5.58510802]
[1745627426231,4.736,1790.6,1790.5,5.58503211]
[1745627426409,4.736,1790.6,1790.4,5.5851648]
[1745627426724,4.736,1790.6,1790.5,5.58503211]
[1745627429831,4.736,1790.6,1790.4,6.36728858]
[1745627430015,4.736,1790.6,1790.3,5.58549548]
[1745627430193,6.0278,1790.6,1790.2,6.8678342]
[1745627430517,6.0278,1790.6,1790.3,5.58564889]
[1745627431216,6.0278,1790.6,1790.3,5.58548212]
[1745627433672,6.0278,1790.6,1790.2,6.08577282]
[1745627433836,6.0278,1790.6,1790.2,0.5]
[1745627434038,6.0278,1790.6,1790.2,6.08582078]
[1745627434238,6.0278,1790.6,1790.3,5.5856506]
[1745627436765,4.736,1790.6,1790.5,5.58503211]
[1745627437288,5.5213,1790.8,1790.6,5.58463127]
[1745627437456,5.5213,1790.8,1790.5,5.58483383]
[1745627437871,5.5213,1790.8,1790.6,5.58471117]
[1745627438566,5.5213,1790.8,1790.5,11.16967929]
[1745627438767,5.5213,1790.8,1790.6,5.58468818]
[1745627438967,5.5213,1790.8,1790.4,5.58516204]
[1745627438968,0.7843,1790.8,1790.4,5.58516204]
[1745627439171,5.5213,1790.8,1790.4,11.17029325]
[1745627439416,5.5213,1790.8,1790.4,5.58513121]
[1745627439582,5.5213,1790.8,1790.4,11.17026457]
[1745627440191,3.7843,1790.7,1790.2,0.5]
[1745627440396,0.37843,1790.6,1790.2,6.08594648]
[1745627440709,0.37843,1790.6,1790.2,6.08583325]
[1745627441007,0.37843,1790.6,1790.3,5.58565599]
[1745627441285,0.37843,1790.6,1790.4,5.58532731]
[1745627441457,0.37843,1790.6,1790.3,5.58565599]
[1745627441787,0.37843,1790.6,1790.3,5.58547706]
[1745627441987,3.7843,1790.7,1790.4,11.1703557]
[1745627442293,3.7843,1790.7,1790.4,5.58511314]
[1745627442589,3.7843,1790.7,1790.2,11.6715443]
[1745627442780,0.7843,1790.6,1790.2,6.08574714]
[1745627442985,1.16273,1790.6,1790.2,6.08574714]
[1745627443293,1.16273,1790.6,1790.2,11.67149948]
[1745627444194,1.16273,1790.6,1790.2,6.08574714]
[1745627444714,1.16273,1790.6,1790.2,11.67153964]
[1745627444916,0.7843,1790.6,1790.4,5.58532436]
[1745627445064,0.7843,1790.6,1790.3,5.58555918]
[1745627445392,0.7843,1790.6,1790.3,5.58544298]
[1745627447371,0.7843,1790.6,1790.2,6.08580768]
[1745627447573,0.7843,1790.6,1790.2,6.08575603]
[1745627447769,1.16273,1790.6,1790.2,11.67149813]
[1745627448501,1.16273,1790.6,1790.2,6.0857421]
[1745627449894,1.16273,1790.6,1790.3,5.58560933]
[1745627450296,1.16273,1790.6,1790.3,5.58543879]
[1745627452020,1.16273,1790.6,1790.4,5.58533368]
[1745627452194,1.16273,1790.6,1790.3,5.58543879]
[1745627452727,4.723,1790.5,1790.3,5.58543879]
[1745627454012,22.89166729,1791.1,1790.5,5.58503211]
[1745627454325,0.8256,1791.0,1790.6,5.58447537]
[1745627454530,4.723,1790.9,1790.7,5.58421159]
[1745627455233,5.27786,1790.9,1790.7,5.58421159]
[1745627456702,5.27786,1790.9,1790.6,5.58472003]
[1745627456931,10.86180539,1790.9,1790.3,6.40198069]
[1745627457222,10.86180539,1790.9,1790.4,5.5851509]
[1745627457223,0.8046,1790.8,1790.4,5.5851509]
[1745627457428,3.8046,1790.8,1790.4,5.5851466]
[1745627457627,4.712846,1790.8,1790.4,11.17027016]
[1745627457928,4.712846,1790.8,1790.5,5.58501989]
[1745627460134,0.8154,1792.0,1791.1,5.58292691]
[1745627460335,0.8154,1792.0,1791.5,0.63005785]
[1745627460634,0.8154,1792.0,1791.7,5.58102386]
[1745627460835,4.722,1792.3,1792.0,5.58024445]
[1745627460836,0.8154,1792.2,1792.0,5.58024445]
[1745627460994,0.8154,1792.2,1792.1,5.58004575]
[1745627461193,4.722,1792.3,1792.2,5.5797158]
[1745627461399,4.722,1792.3,1792.1,5.57982148]
[1745627461632,4.722,1792.3,1792.1,5.57985629]
[1745627461803,4.722,1792.3,1792.1,11.15968712]
[1745627461999,0.31319989,1792.6,1792.1,1.74602656]
[1745627462198,5.03419989,1792.6,1792.4,5.5791118]
[1745627462398,5.03419989,1792.6,1792.4,5.5790409]
[1745627462662,4.721,1792.6,1792.4,5.5790409]
[1745627464037,4.721,1792.6,1792.5,5.57880055]
[1745627464348,4.721,1792.6,1792.4,5.578988]
[1745627464725,4.721,1792.6,1792.5,5.57880055]
[1745627465543,4.721,1792.6,1792.4,11.15781092]
[1745627465707,4.721,1792.6,1792.4,5.57889143]
[1745627466048,4.721,1792.6,1792.4,5.57888487]
[1745627466224,4.721,1792.6,1792.5,5.57880055]
[1745627468556,3.8654,1792.9,1792.7,5.57816203]
[1745627468557,4.719,1792.8,1792.7,5.57816203]
[1745627469157,4.719,1792.8,1792.4,5.57894871]
[1745627469312,4.719,1792.8,1792.5,5.57878385]
[1745627469527,4.719,1792.8,1792.5,5.57879578]
[1745627470364,4.719,1792.8,1792.5,5.57858586]
[1745627470829,4.719,1792.8,1792.6,5.57848571]
[1745627471269,4.719,1792.8,1792.6,5.57848618]
[1745627471477,4.719,1792.8,1792.7,5.57817816]
[1745627471835,4.719,1792.8,1792.6,5.57826211]
[1745627473486,0.8654,1792.9,1792.8,5.57786702]
[1745627473487,0.05,1792.9,1792.8,5.57786702]
[1745627475058,0.05,1792.9,1792.8,6.37186702]
[1745627475059,1e-08,1792.9,1792.8,6.37186702]
[1745627475986,1e-08,1792.9,1792.8,5.57786702]
[1745627476289,1e-08,1792.9,1791.9,0.8241]
[1745627476290,0.7711,1792.4,1791.9,0.8241]
[1745627476581,4.753,1792.3,1791.7,6.8541]
[1745627476785,5.57993195,1792.2,1791.8,0.68541]
[1745627477013,5.58052756,1792.0,1791.6,0.5]
[1745627477168,0.7711,1792.0,1791.6,0.5]
[1745627477347,3.7711,1792.0,1791.8,5.58085666]
[1745627477547,3.7711,1792.2,1791.7,5.58129151]
[1745627477768,3.7711,1792.2,1792.0,5.58031448]
[1745627478261,0.7711,1792.2,1791.9,5.58046335]
[1745627478882,0.7711,1792.2,1792.0,5.58029341]
[1745627479793,0.7711,1792.2,1791.9,5.58053685]
[1745627481600,0.7711,1792.2,1791.9,11.16101542]
[1745627481765,0.7711,1792.2,1791.9,5.58047857]
[1745627482297,0.7711,1792.2,1792.0,5.58020557]
[1745627482498,4.753,1792.2,1792.0,5.58020557]
[1745627482790,4.753,1792.2,1791.9,6.49255571]
[1745627482995,4.753,1792.2,1791.9,5.5804341]
[1745627484544,4.753,1792.2,1792.0,5.58031331]
[1745627485263,4.753,1792.2,1792.1,5.58004575]
[1745627488620,4.753,1792.2,1792.0,5.58035368]
[1745627489141,5.58109618,1791.8,1791.6,0.5]
[1745627489324,4.753,1791.8,1791.6,0.5]
[1745627490421,4.753,1791.8,1791.6,6.08159902]
[1745627491784,4.753,1791.8,1791.7,5.58129151]
[1745627495390,4.753,1791.8,1791.6,0.5]
[1745627495913,0.7825,1791.7,1791.6,0.5]
[1745627496112,0.7825,1791.7,1791.6,6.08160303]
[1745627496513,4.753,1791.8,1791.6,6.08160303]
[1745627496935,4.753,1791.8,1791.6,0.5]
[1745627497232,5.5365,1792.1,1791.9,5.58060163]
[1745627497438,0.7825,1792.1,1792.0,5.58035714]
[1745627497635,4.754,1792.1,1792.0,5.58035714]
[1745627499102,4.754,1792.1,1791.9,5.58044923]
[1745627499301,4.754,1792.1,1792.0,5.58035714]
[1745627500021,4.754,1792.1,1791.9,5.58043923]
[1745627500022,5.5365,1792.1,1791.8,5.58081054]
[1745627500435,5.5365,1792.1,1791.9,5.58061802]
[1745627501639,5.5365,1792.1,1791.9,5.58047222]
[1745627501836,5.5365,1792.1,1792.0,5.58035714]
[1745627503443,5.5365,1792.1,1791.9,5.58047222]
[1745627503644,6.09015,1792.1,1791.6,0.5]
[1745627503808,6.09015,1792.1,1791.6,6.081424]
[1745627504009,6.09015,1792.1,1791.7,5.58104259]
[1745627504547,5.5365,1792.1,1791.9,5.58066532]
[1745627505137,5.5365,1792.1,1791.8,5.58083187]
[1745627507410,5.5365,1792.1,1791.7,5.58111486]
[1745627507610,3.0,1792.0,1791.6,6.0814384]
[1745627507812,3.0,1792.0,1791.6,0.5]
[1745627508024,4.41166945,1792.0,1791.6,6.08160022]
[1745627508747,4.41166945,1792.0,1791.6,6.08145793]
[1745627509048,4.41166945,1792.0,1791.7,5.58126355]
[1745627509251,4.41166945,1792.0,1791.6,6.08145793]
[1745627509919,3.0,1792.0,1791.8,5.58089669]
[1745627510119,5.5365,1792.1,1791.6,0.5]
[1745627510445,5.5365,1792.1,1791.8,5.58085635]
[1745627511248,5.5365,1792.1,1791.7,5.58119059]
[1745627511249,5.5365,1792.1,1791.7,5.58109809]
[1745627511549,6.39015,1792.1,1791.6,6.08146583]
[1745627511736,6.39015,1792.1,1791.6,11.66287901]
[1745627511939,6.39015,1792.1,1791.6,11.662791]
[1745627512121,3.0,1792.0,1791.6,0.5]
[1745627512546,3.0,1792.0,1791.6,6.08150851]
[1745627512737,4.49702997,1792.0,1791.6,6.08150851]
[1745627512933,4.49702997,1792.0,1791.6,0.5]
[1745627513138,0.7533,1791.9,1791.6,0.5]
[1745627513849,4.775,1791.8,1791.6,0.5]
[1745627517556,9.33459151,1791.7,1791.6,0.5]
[1745627517754,11.30366229,1791.7,1791.6,0.5]
[1745627518352,11.30366229,1791.7,1790.7,5.58426791]
[1745627518353,0.7533,1791.1,1790.7,5.58426791]
[1745627518663,0.7533,1791.1,1790.7,11.16838655]
[1745627518868,0.7533,1791.1,1790.9,5.58357418]
[1745627519042,7.776,1791.2,1790.9,5.58357418]
[1745627519239,8.62893,1791.2,1790.9,5.58357418]
[1745627519964,8.62893,1791.2,1790.8,11.98434007]
[1745627520134,8.62893,1791.2,1790.9,5.58378146]
[1745627520336,5.5293,1791.3,1791.1,5.58298498]
[1745627520549,5.5293,1791.3,1791.1,5.58309996]
[1745627520736,5.5293,1791.3,1790.9,0.6293728]
[1745627520958,5.5293,1791.3,1791.1,5.58310561]
[1745627521270,5.5293,1791.3,1791.0,5.58334274]
[1745627521473,5.5293,1791.3,1791.1,5.58302753]
[1745627521641,4.776,1791.3,1791.2,5.58284948]
[1745627522171,0.8074,1791.5,1791.3,5.58227232]
[1745627522366,4.776,1791.5,1791.4,5.58222619]
[1745627522766,4.776,1791.6,1791.5,5.58191459]
[1745627523794,4.776,1791.7,1791.6,5.5815247]
[1745627524282,4.776,1791.7,1791.5,5.58170178]
[1745627524477,4.776,1791.7,1791.6,5.58160303]
[1745627524868,4.776,1791.7,1791.5,5.58173776]
[1745627525651,4.776,1791.7,1791.5,5.5817167]
[1745627525866,4.776,1791.7,1791.5,5.58169559]
[1745627528298,0.7719,1791.6,1791.1,5.58301083]
[1745627528449,0.7719,1791.6,1791.2,5.58270269]
[1745627528649,3.7719,1791.6,1791.2,5.58270269]
[1745627528964,3.7719,1791.6,1791.3,5.58239588]
[1745627529166,4.67445,1791.6,1791.2,5.58270228]
[1745627529371,4.67445,1791.6,1791.2,11.16537676]
[1745627529697,4.67445,1791.6,1791.4,5.58222274]
[1745627529855,4.67445,1791.6,1791.3,5.58232]
[1745627531203,1.67445,1791.6,1791.3,5.58232]
[1745627531889,1.67445,1791.6,1791.4,5.58210594]
[1745627531890,0.7719,1791.6,1791.4,5.58210594]
[1745627532900,0.7719,1791.6,1791.3,5.58245879]
[1745627533669,0.7719,1791.6,1791.4,5.58219559]
[1745627534580,0.7719,1791.6,1791.3,5.58238268]
[1745627534903,6.35354979,1791.6,1791.1,5.58306909]
[1745627535279,0.7719,1791.6,1791.2,5.58284258]
[1745627535470,0.7719,1791.6,1791.3,5.58231956]
[1745627537405,0.7719,1791.6,1790.9,5.58369389]
[1745627537406,6.35314034,1791.5,1790.9,5.58369389]
[1745627537706,3.0,1791.3,1790.8,5.58391615]
[1745627537861,5.515,1791.2,1790.8,5.58386883]
[1745627538489,5.515,1791.2,1791.0,5.5833485]
[1745627538695,5.515,1791.2,1791.1,5.58316118]
[1745627539080,5.515,1791.2,1791.0,5.5833485]
[1745627539391,5.515,1791.2,1790.9,11.16717449]
[1745627539601,5.515,1791.2,1791.0,5.58330729]
[1745627539799,4.744,1791.2,1791.1,5.58316118]
[1745627543311,0.60255,1791.6,1791.5,5.58191459]
[1745627543312,4.744,1791.6,1791.5,5.58191459]
[1745627543476,4.744,1791.6,1791.3,5.58235572]
[1745627543803,4.744,1791.6,1791.5,5.58191459]
[1745627544656,4.744,1791.6,1791.4,5.58203984]
[1745627545307,4.744,1791.6,1791.4,5.58203046]
[1745627545666,4.744,1791.6,1791.4,11.16412226]
[1745627545866,4.744,1791.6,1791.4,5.58203046]
[1745627547205,4.744,1791.6,1791.4,11.16405599]
[1745627547407,4.744,1791.6,1791.5,5.58191459]
[1745627549221,4.744,1791.6,1791.5,6.14051459]
[1745627549423,4.744,1791.6,1791.5,5.58191459]
[1745627549992,4.744,1791.7,1791.6,5.58159971]
[1745627550190,17.5046,1791.8,1791.6,5.58159971]
[1745627550413,4.744,1791.7,1791.6,5.58159971]
[1745627550604,17.5046,1791.8,1791.5,5.58172311]
[1745627550790,4.744,1791.7,1791.5,5.58172311]
[1745627551225,4.744,1791.7,1791.4,5.58203271]
[1745627551429,0.7775,1791.6,1791.3,5.58240039]
[1745627552825,0.7775,1791.6,1791.2,5.58269952]
[1745627553031,0.7775,1791.6,1791.2,5.58264286]
[1745627553747,0.7775,1791.5,1791.0,5.58332548]
[1745627554041,1.15525,1791.5,1790.9,5.58376978]
[1745627554202,1.15525,1791.5,1790.9,5.58378468]
[1745627554404,1.15525,1791.5,1791.2,5.58260774]
[1745627554738,1.15525,1791.5,1791.1,5.58304309]
[1745627556140,1.15525,1791.5,1791.1,5.58298489]
[1745627558335,1.15525,1791.5,1791.2,5.58283668]
[1745627558634,1.15525,1791.5,1791.3,5.58242699]
[1745627559439,1.15525,1791.5,1791.2,5.58271643]
[1745627559682,1.15525,1791.5,1791.1,11.16590512]
[1745627559846,1.15525,1791.5,1791.1,5.58292874]
[1745627560008,1.15525,1791.5,1791.0,5.58329553]
[1745627560648,1.46831212,1791.5,1791.0,11.16657452]
[1745627560945,1.46831212,1791.5,1791.0,5.58327899]
[1745627561443,4.744,1791.4,1791.0,11.16653918]
[1745627561643,5.36523121,1791.4,1791.0,11.16653918]
[1745627562046,5.36523121,1791.4,1791.0,5.58326019]
[1745627562943,5.36523121,1791.4,1790.9,5.58378468]
[1745627563144,5.36523121,1791.4,1791.2,5.58272843]
[1745627565074,5.36523121,1791.4,1791.0,5.58316836]
[1745627565574,0.53652312,1791.3,1791.0,5.58316836]
[1745627566535,0.53652312,1791.3,1790.6,0.6293728]
[1745627566536,0.7739,1791.2,1790.6,1.4548728]
[1745627566779,5.58302939,1791.2,1790.6,5.58468541]
[1745627566935,0.7739,1791.0,1790.6,5.58450839]
[1745627567135,4.728,1790.9,1790.6,5.58450839]
[1745627567378,4.728,1790.9,1790.6,11.16903074]
[1745627568173,4.728,1790.9,1790.7,11.16851703]
[1745627568343,4.728,1790.9,1790.8,5.58409649]
[1745627569173,4.728,1790.9,1790.7,5.58420781]
[1745627569684,4.728,1790.9,1790.6,5.58455033]
[1745627570049,4.728,1790.9,1790.7,5.58440392]
[1745627571281,4.728,1790.9,1790.7,5.58417698]
[1745627572044,4.728,1790.9,1790.8,5.58409649]
[1745627574177,4.728,1790.9,1790.8,6.77734384]
[1745627576149,5.505,1791.2,1791.0,5.58342685]
[1745627577260,3.0,1791.1,1790.5,0.8252]
[1745627577461,0.7668,1791.0,1790.5,5.58485762]
[1745627577775,1.70180996,1791.0,1790.6,5.5844841]
[1745627578071,0.7668,1791.0,1790.6,5.5844841]
[1745627579038,0.7668,1791.0,1790.5,11.16971867]
[1745627579338,6.35033503,1791.0,1790.6,0.5586]
[1745627579546,0.7668,1790.9,1790.3,1.3838]
[1745627579745,4.729,1790.8,1790.6,5.58471878]
[1745627579965,5.27858,1790.8,1790.5,5.58486429]
[1745627580353,5.27858,1790.8,1790.4,5.58507405]
[1745627580354,0.8027,1790.7,1790.4,5.58507405]
[1745627580554,0.8027,1790.7,1790.5,5.5849741]
[1745627580765,0.8027,1790.7,1790.6,5.5847202]
[1745627581781,0.8027,1790.7,1790.5,5.584817]
[1745627582373,5.27858,1790.8,1790.7,5.58440833]
[1745627582374,4.729,1790.8,1790.7,5.58440833]
[1745627582574,4.729,1790.8,1790.6,5.58447861]
[1745627584265,4.729,1790.8,1790.7,5.58440833]
[1745627584569,4.729,1791.0,1790.9,5.58359643]
[1745627591596,0.7792,1791.4,1791.3,5.58253782]
[1745627591796,4.729,1791.4,1791.3,5.58253782]
[1745627592569,4.729,1791.4,1790.8,6.41368854]
[1745627592570,0.7792,1791.3,1790.8,6.41368854]
[1745627592785,1.2521,1791.3,1790.8,5.58388131]
[1745627593065,0.7792,1791.2,1790.8,5.58387935]
[1745627593575,5.58290544,1791.2,1790.7,5.58440211]
[1745627593775,0.7792,1791.1,1790.7,5.58440211]
[1745627593964,4.729,1791.0,1790.7,5.58440211]
[1745627594164,5.27982,1791.0,1790.7,11.16859163]
[1745627594586,5.27982,1791.0,1790.8,5.58407902]
[1745627594905,4.729,1791.0,1790.9,5.58378468]
[1745627595197,4.729,1791.0,1790.7,5.58429993]
[1745627596391,0.8259,1790.9,1790.6,5.58458617]
[1745627596903,0.8259,1790.9,1790.8,5.58409649]
[1745627597766,0.8259,1790.9,1790.7,5.58420156]
[1745627597968,0.8259,1790.9,1790.7,11.16838741]
[1745627598302,0.8259,1790.9,1790.7,5.58418585]
[1745627598502,4.729,1791.0,1790.9,5.58378468]
[1745627599600,4.729,1791.0,1790.7,11.16853494]
[1745627599763,4.729,1791.0,1790.6,0.7984]
[1745627599764,4.729,1791.0,1790.6,5.58450666]
[1745627599967,0.8259,1790.9,1790.6,5.58450666]
[1745627600400,0.8259,1790.9,1790.7,5.58440816]